{"text_format":"1","workbook":"xlsx","n_sheets":3,"sheets":["GM aktas","Suvestine","darbinis"],"not_rendered":{"charts":0,"images":1,"macros":1,"external_links":0,"defined_names":32,"comments":1,"pivot_tables":0},"unopened":[],"bounds":{"document_bytes":16777216,"sheet_cells":100000,"rows_first":2000,"rows_last":500,"rows_between":2000,"halvings":0,"cell_chars":16384,"cell_head_chars":4096},"cells_cut":0,"cells_raw":0,"read":"whole","date_system":"1900"}

{"sheet":"GM aktas","index":0,"n_rows":47,"n_cols":16,"rows_kept":47,"cut":false,"hidden":false,"merged":[[23,2,23,5],[14,2,14,5],[16,2,16,5],[18,2,18,5],[6,2,6,5],[8,2,8,5],[15,2,15,5],[1,0,1,7],[2,1,2,7],[10,2,10,5],[12,2,12,5],[3,0,3,7],[34,1,34,2],[35,1,35,2],[36,1,36,2],[27,2,27,5],[30,1,30,2],[31,1,31,2],[32,1,32,2],[33,1,33,2]]}
[null,null,null,null,null,null,null,"Priedas Nr. 4"]
["GRĮŽTAMŲJŲ MEDŽIAGŲ AKTAS"]
[null,"Priduotas metalo laužas"]
["Akto forma galioja nuo 2026.07.01 iki 2026.09.30"]
[]
[]
["1.","Rangovas","pasirinkti",null,null,null,null,null,null,null,null,null,null,null,{"$f":"IF(C7=\"pasirinkti\",1,0)","v":1}]
[]
["2.","Rangos darbų sutarties Nr.","užpildyti",null,null,null,null,null,null,null,null,null,null,null,{"$f":"IF(C9=\"užpildykite sutarties Nr.\",1,0)","v":0}]
[]
["3.","Rangos darbų užsakymo Nr.","užpildyti",null,null,null,null,null,null,null,null,null,null,null,{"$f":"IF(C11=\"užpildyti\",1,0)","v":1}]
[]
["4.","Objekto pavadinimas pagal klasifikatorių:","užpildyti",null,null,null,null,null,null,null,null,null,null,null,{"$f":"IF(C13=\"Užpildyti\",1,0)","v":1}]
[]
["5.","Investicinis Nr./Darbų Nr. (iš TIVIS)","užpildyti",null,null,null,null,null,null,null,null,null,null,null,{"$f":"IF(C15=\"užpildyti\",1,0)","v":1}]
["6.","Objekto Nr. (iš TIVIS)","užpildyti"]
["7.","Grįžtamųjų medžiagų atsiradimo priežastis: ","pasirinkti",null,null,null,null,null,null,null,null,null,null,null,{"$f":"IF(C17=\"pasirinkti\",1,0)","v":1}]
[]
["8.","GM akto pateikimo data:","202X-xx-xx",null,null,null,null,null,null,null,null,null,null,null,{"$f":"IF(C19=\"202X-xx-xx\",1,0)","v":1}]
[]
[null,null,null,null,null,null,null,null,null,null,null,null,null,null,null,{"$f":"SUM(O7,O9,O11,O13,O15,O17,O19,O43,O46,P39,O25,O24,O28)","v":9}]
[]
[]
[null,"Grįžtamųjų medžiagų supirkėjas*","pasirinkti",null,null,null,{"$f":"IF($C$24<>\"pasirinkti\",\"Privaloma užpildyti GPAIS (atliekų lydraštis) ir iVAZ (el. krovinio važtaraštis) ESO vardu.\",\"\")","v":""},null,null,null,null,null,null,null,{"$f":"IF(C24=\"pasirinkti\",1,0)","v":1}]
[null,"*pildoma jei grįžtamosios medžiagos pristatomos į supirktuvę",null,null,null,null,null,null,null,null,null,null,null,null,{"$f":"IF(C24=\"\",1,0)","v":0}]
[]
[]
[null,"Objekto Inventorinis Nr.","užpildyti",null,null,null,{"$f":"IF(LEFT(C17,7)<>\"2525002\",\"\",IF(C28=\"užpildyti\",\"Reikalingas Investicinis numeris\",IF(C28=\"\",\"Reikalingas Investicinis numeris\",\"\")))","v":""},null,null,null,null,null,null,null,{"$f":"IF(G28<>\"\",1,0)","v":0}]
[]
[]
["Eilės Nr.","Grįžtamųjų medžiagų pavadinimas",null,"Gamyklinis Nr.","Mato vnt.","Kiekis","Suma","Dynamics kodas"]
[1,"pasirinkti",null,null,"kg.",null,{"$f":"IFERROR(F32*(IF($C$24=darbinis!$C$3,VLOOKUP(B32,darbinis!$C$16:$M$36,5,0),IF($C$24=darbinis!$C$4,VLOOKUP(B32,darbinis!$C$16:$M$36,6,0),IF($C$24=darbinis!$C$5,VLOOKUP(B32,darbinis!$C$16:$M$36,7,0),IF($C$24=darbinis!$C$6,VLOOKUP(B32,darbinis!$C$16:$M$36,8,0),IF($C$24=darbinis!$C$7,VLOOKUP(B32,darbinis!$C$16:$M$36,9,0),IF($C$24=darbinis!$C$8,VLOOKUP(B32,darbinis!$C$16:$M$36,10,0),IF($C$24=darbinis!$C$9,VLOOKUP(B32,darbinis!$C$16:$M$36,11,0),\"Nepasirinktas Supirkėjas\")))))))),\"0\")","v":"0"},{"$f":"IF(B32=\"pasirinkti\",\"\",VLOOKUP(B32,darbinis!$C$16:$D$36,2,0))","v":""},{"$f":"IF(B32<>\"pasirinkti\",IF($C$24=\"pasirinkti\",\"Pasirinkite supirkėją\",IF($C$24=\"\",\"Pasirinkite supirkėją\",\"\")),\"\")","v":""},{"$f":"IF(B32<>\"pasirinkti\",IF($F$32=\"\",\"Supildykite kiekį\",\"\"),\"\")","v":""},null,null,null,null,{"$f":"IF(I32<>\"\",1,0)","v":0},{"$f":"IF(B32<>\"pasirinkti\",IF(F32=\"\",1,0),\"\")","v":""}]
[2,"pasirinkti",null,null,"kg.",null,{"$f":"IFERROR(F33*(IF($C$24=darbinis!$C$3,VLOOKUP(B33,darbinis!$C$16:$M$36,5,0),IF($C$24=darbinis!$C$4,VLOOKUP(B33,darbinis!$C$16:$M$36,6,0),IF($C$24=darbinis!$C$5,VLOOKUP(B33,darbinis!$C$16:$M$36,7,0),IF($C$24=darbinis!$C$6,VLOOKUP(B33,darbinis!$C$16:$M$36,8,0),IF($C$24=darbinis!$C$7,VLOOKUP(B33,darbinis!$C$16:$M$36,9,0),IF($C$24=darbinis!$C$8,VLOOKUP(B33,darbinis!$C$16:$M$36,10,0),IF($C$24=darbinis!$C$9,VLOOKUP(B33,darbinis!$C$16:$M$36,11,0),\"Nepasirinktas Supirkėjas\")))))))),\"0\")","v":"0"},{"$f":"IF(B33=\"pasirinkti\",\"\",VLOOKUP(B33,darbinis!$C$16:$D$36,2,0))","v":""},{"$f":"IF(B33<>\"pasirinkti\",IF($C$24=\"pasirinkti\",\"Pasirinkite supirkėją\",IF($C$24=\"\",\"Pasirinkite supirkėją\",\"\")),\"\")","v":""},{"$f":"IF(B33<>\"pasirinkti\",IF($F$33=\"\",\"Supildykite kiekį\",\"\"),\"\")","v":""},null,null,null,null,{"$f":"IF(I33<>\"\",1,0)","v":0},{"$f":"IF(B33<>\"pasirinkti\",IF(F33=\"\",1,0),\"\")","v":""}]
[3,"pasirinkti",null,null,"kg.",null,{"$f":"IFERROR(F34*(IF($C$24=darbinis!$C$3,VLOOKUP(B34,darbinis!$C$16:$M$36,5,0),IF($C$24=darbinis!$C$4,VLOOKUP(B34,darbinis!$C$16:$M$36,6,0),IF($C$24=darbinis!$C$5,VLOOKUP(B34,darbinis!$C$16:$M$36,7,0),IF($C$24=darbinis!$C$6,VLOOKUP(B34,darbinis!$C$16:$M$36,8,0),IF($C$24=darbinis!$C$7,VLOOKUP(B34,darbinis!$C$16:$M$36,9,0),IF($C$24=darbinis!$C$8,VLOOKUP(B34,darbinis!$C$16:$M$36,10,0),IF($C$24=darbinis!$C$9,VLOOKUP(B34,darbinis!$C$16:$M$36,11,0),\"Nepasirinktas Supirkėjas\")))))))),\"0\")","v":"0"},{"$f":"IF(B34=\"pasirinkti\",\"\",VLOOKUP(B34,darbinis!$C$16:$D$36,2,0))","v":""},"",{"$f":"IF(B34<>\"pasirinkti\",IF($F$34=\"\",\"Supildykite kiekį\",\"\"),\"\")","v":""},null,null,null,null,0,""]
[4,"pasirinkti",null,null,"kg.",null,{"$f":"IFERROR(F35*(IF($C$24=darbinis!$C$3,VLOOKUP(B35,darbinis!$C$16:$M$36,5,0),IF($C$24=darbinis!$C$4,VLOOKUP(B35,darbinis!$C$16:$M$36,6,0),IF($C$24=darbinis!$C$5,VLOOKUP(B35,darbinis!$C$16:$M$36,7,0),IF($C$24=darbinis!$C$6,VLOOKUP(B35,darbinis!$C$16:$M$36,8,0),IF($C$24=darbinis!$C$7,VLOOKUP(B35,darbinis!$C$16:$M$36,9,0),IF($C$24=darbinis!$C$8,VLOOKUP(B35,darbinis!$C$16:$M$36,10,0),IF($C$24=darbinis!$C$9,VLOOKUP(B35,darbinis!$C$16:$M$36,11,0),\"Nepasirinktas Supirkėjas\")))))))),\"0\")","v":"0"},{"$f":"IF(B35=\"pasirinkti\",\"\",VLOOKUP(B35,darbinis!$C$16:$D$36,2,0))","v":""},"",{"$f":"IF(B35<>\"pasirinkti\",IF($F$35=\"\",\"Supildykite kiekį\",\"\"),\"\")","v":""},null,null,null,null,0,""]
[5,"pasirinkti",null,null,"kg.",null,{"$f":"IFERROR(F36*(IF($C$24=darbinis!$C$3,VLOOKUP(B36,darbinis!$C$16:$M$36,5,0),IF($C$24=darbinis!$C$4,VLOOKUP(B36,darbinis!$C$16:$M$36,6,0),IF($C$24=darbinis!$C$5,VLOOKUP(B36,darbinis!$C$16:$M$36,7,0),IF($C$24=darbinis!$C$6,VLOOKUP(B36,darbinis!$C$16:$M$36,8,0),IF($C$24=darbinis!$C$7,VLOOKUP(B36,darbinis!$C$16:$M$36,9,0),IF($C$24=darbinis!$C$8,VLOOKUP(B36,darbinis!$C$16:$M$36,10,0),IF($C$24=darbinis!$C$9,VLOOKUP(B36,darbinis!$C$16:$M$36,11,0),\"Nepasirinktas Supirkėjas\")))))))),\"0\")","v":"0"},{"$f":"IF(B36=\"pasirinkti\",\"\",VLOOKUP(B36,darbinis!$C$16:$D$36,2,0))","v":""},"",{"$f":"IF(B36<>\"pasirinkti\",IF($F$36=\"\",\"Supildykite kiekį\",\"\"),\"\")","v":""},null,null,null,null,0,""]
[6,"pasirinkti",null,null,"kg.",null,{"$f":"IFERROR(F37*(IF($C$24=darbinis!$C$3,VLOOKUP(B37,darbinis!$C$16:$M$36,5,0),IF($C$24=darbinis!$C$4,VLOOKUP(B37,darbinis!$C$16:$M$36,6,0),IF($C$24=darbinis!$C$5,VLOOKUP(B37,darbinis!$C$16:$M$36,7,0),IF($C$24=darbinis!$C$6,VLOOKUP(B37,darbinis!$C$16:$M$36,8,0),IF($C$24=darbinis!$C$7,VLOOKUP(B37,darbinis!$C$16:$M$36,9,0),IF($C$24=darbinis!$C$8,VLOOKUP(B37,darbinis!$C$16:$M$36,10,0),IF($C$24=darbinis!$C$9,VLOOKUP(B37,darbinis!$C$16:$M$36,11,0),\"Nepasirinktas Supirkėjas\")))))))),\"0\")","v":"0"},{"$f":"IF(B37=\"pasirinkti\",\"\",VLOOKUP(B37,darbinis!$C$16:$D$36,2,0))","v":""},"",{"$f":"IF(B37<>\"pasirinkti\",IF($F$37=\"\",\"Supildykite kiekį\",\"\"),\"\")","v":""},null,null,null,null,0,""]
[null,null,null,null,"iš Viso:",{"$f":"SUM(F32:F37)","v":0},{"$f":"SUM(G32:G37)","v":0}]
[null,null,null,null,null,null,null,null,null,null,null,null,null,null,null,{"$f":"SUM(O32:O37,P32:P37)","v":0}]
[]
[]
[]
[null,"Atsakingas asmuo\n(Techninis prižiūrėtojas)",null,null,null,null,null,{"$f":"IFERROR(IF(G43<>\"\",VLOOKUP(G43,darbinis!I:J,2,0),\"\"),\"\")","v":""},null,null,null,null,null,null,{"$f":"IF(G43=\"\",1,0)","v":1}]
[null,null,null,null,null,null,"Vardas, pavardė, parašas"]
[]
[null,"Darbų vykdytojas\n(Rangovas)",null,null,null,null,null,null,null,null,null,null,null,null,{"$f":"IF(G46=\"\",1,0)","v":1}]
[null,null," ",null,null,null,"Vardas, pavardė, parašas"]

{"sheet":"Suvestine","index":1,"n_rows":21,"n_cols":12,"rows_kept":21,"cut":false,"hidden":false,"merged":[[6,2,6,4],[7,2,7,4],[8,2,8,4],[1,2,1,4],[2,2,2,4],[3,2,3,4],[4,2,4,4],[5,2,5,4]]}
[]
[{"$f":"'GM aktas'!A7","v":"1."},{"$f":"'GM aktas'!B7","v":"Rangovas"},{"$f":"'GM aktas'!C7","v":"pasirinkti"}]
[{"$f":"'GM aktas'!A9","v":"2."},{"$f":"'GM aktas'!B9","v":"Rangos darbų sutarties Nr."},{"$f":"'GM aktas'!C9","v":"užpildyti"}]
[{"$f":"'GM aktas'!A11","v":"3."},{"$f":"'GM aktas'!B11","v":"Rangos darbų užsakymo Nr."},{"$f":"'GM aktas'!C11","v":"užpildyti"}]
[{"$f":"'GM aktas'!A13","v":"4."},{"$f":"'GM aktas'!B13","v":"Objekto pavadinimas pagal klasifikatorių:"},{"$f":"'GM aktas'!C13","v":"užpildyti"}]
[{"$f":"'GM aktas'!A15","v":"5."},{"$f":"'GM aktas'!B15","v":"Investicinis Nr./Darbų Nr. (iš TIVIS)"},{"$f":"'GM aktas'!C15","v":"užpildyti"}]
[{"$f":"'GM aktas'!A16","v":"6."},{"$f":"'GM aktas'!B16","v":"Objekto Nr. (iš TIVIS)"},{"$f":"'GM aktas'!C16","v":"užpildyti"}]
[{"$f":"'GM aktas'!A17","v":"7."},{"$f":"'GM aktas'!B17","v":"Grįžtamųjų medžiagų atsiradimo priežastis: "},{"$f":"'GM aktas'!C17","v":"pasirinkti"}]
[{"$f":"'GM aktas'!A19","v":"8."},{"$f":"'GM aktas'!B19","v":"GM akto pateikimo data:"},{"$f":"'GM aktas'!C19","v":"202X-xx-xx"}]
[]
[null,"Grįžtamųjų medžiagų supirkėjas"]
[null,{"$f":"'GM aktas'!C24","v":"pasirinkti"}]
[]
[null,"Prekės pavadinimas","Inventorinis Nr.",null,"Mato vnt.","Kiekis","Suma","Dynamics kodas","Dynamics pavadinimas","Kaina",null,"Sk"]
[null,{"$f":"IF('GM aktas'!B32=\"PASIRINKTI\",\"\",'GM aktas'!B32)","v":""},{"$f":"IF('GM aktas'!B32=\"PASIRINKTI\",\"\",'GM aktas'!C28)","v":""},null,"kg.",{"$f":"IF('GM aktas'!B32=\"PASIRINKTI\",\"\",'GM aktas'!F32)","v":""},{"$f":"IF('GM aktas'!B32=\"PASIRINKTI\",\"\",'GM aktas'!G32)","v":""},{"$f":"IF('GM aktas'!B32=\"PASIRINKTI\",\"\",'GM aktas'!H32)","v":""},{"$f":"IF(H15=\"\",\"\",VLOOKUP(H15,darbinis!$D$16:$E$36,2,0))","v":""},{"$f":"'GM aktas'!G32/'GM aktas'!F32","v":{"$error":"#DIV/0!"}},null,{"$f":"IF(B15=\"\",0,1)","v":0}]
[null,{"$f":"IF('GM aktas'!B33=\"PASIRINKTI\",\"\",'GM aktas'!B33)","v":""},{"$f":"IF('GM aktas'!B33=\"PASIRINKTI\",\"\",'GM aktas'!C28)","v":""},null,"kg.",{"$f":"IF('GM aktas'!B33=\"PASIRINKTI\",\"\",'GM aktas'!F33)","v":""},{"$f":"IF('GM aktas'!B33=\"PASIRINKTI\",\"\",'GM aktas'!G33)","v":""},{"$f":"IF('GM aktas'!B33=\"PASIRINKTI\",\"\",'GM aktas'!H33)","v":""},{"$f":"IF(H16=\"\",\"\",VLOOKUP(H16,darbinis!$D$16:$E$36,2,0))","v":""},{"$f":"'GM aktas'!G33/'GM aktas'!F33","v":{"$error":"#DIV/0!"}},null,{"$f":"IF(B16=\"\",0,1)","v":0}]
[null,{"$f":"IF('GM aktas'!B34=\"PASIRINKTI\",\"\",'GM aktas'!B34)","v":""},{"$f":"IF('GM aktas'!B34=\"PASIRINKTI\",\"\",'GM aktas'!C28)","v":""},null,"kg.",{"$f":"IF('GM aktas'!B34=\"PASIRINKTI\",\"\",'GM aktas'!F34)","v":""},{"$f":"IF('GM aktas'!B34=\"PASIRINKTI\",\"\",'GM aktas'!G34)","v":""},{"$f":"IF('GM aktas'!B34=\"PASIRINKTI\",\"\",'GM aktas'!H34)","v":""},{"$f":"IF(H17=\"\",\"\",VLOOKUP(H17,darbinis!$D$16:$E$36,2,0))","v":""},{"$f":"'GM aktas'!G34/'GM aktas'!F34","v":{"$error":"#DIV/0!"}},null,0]
[null,{"$f":"IF('GM aktas'!B35=\"PASIRINKTI\",\"\",'GM aktas'!B35)","v":""},{"$f":"IF('GM aktas'!B35=\"PASIRINKTI\",\"\",'GM aktas'!C28)","v":""},null,"kg.",{"$f":"IF('GM aktas'!B35=\"PASIRINKTI\",\"\",'GM aktas'!F35)","v":""},{"$f":"IF('GM aktas'!B35=\"PASIRINKTI\",\"\",'GM aktas'!G35)","v":""},{"$f":"IF('GM aktas'!B35=\"PASIRINKTI\",\"\",'GM aktas'!H35)","v":""},{"$f":"IF(H18=\"\",\"\",VLOOKUP(H18,darbinis!$D$16:$E$36,2,0))","v":""},{"$f":"'GM aktas'!G35/'GM aktas'!F35","v":{"$error":"#DIV/0!"}},null,0]
[null,{"$f":"IF('GM aktas'!B36=\"PASIRINKTI\",\"\",'GM aktas'!B36)","v":""},{"$f":"IF('GM aktas'!B36=\"PASIRINKTI\",\"\",'GM aktas'!C28)","v":""},null,"kg.",{"$f":"IF('GM aktas'!B36=\"PASIRINKTI\",\"\",'GM aktas'!F36)","v":""},{"$f":"IF('GM aktas'!B36=\"PASIRINKTI\",\"\",'GM aktas'!G36)","v":""},{"$f":"IF('GM aktas'!B36=\"PASIRINKTI\",\"\",'GM aktas'!H36)","v":""},{"$f":"IF(H19=\"\",\"\",VLOOKUP(H19,darbinis!$D$16:$E$36,2,0))","v":""},{"$f":"'GM aktas'!G36/'GM aktas'!F36","v":{"$error":"#DIV/0!"}},null,0]
[null,{"$f":"IF('GM aktas'!B37=\"PASIRINKTI\",\"\",'GM aktas'!B37)","v":""},{"$f":"IF('GM aktas'!B37=\"PASIRINKTI\",\"\",'GM aktas'!C28)","v":""},null,"kg.",{"$f":"IF('GM aktas'!B37=\"PASIRINKTI\",\"\",'GM aktas'!F37)","v":""},{"$f":"IF('GM aktas'!B37=\"PASIRINKTI\",\"\",'GM aktas'!G37)","v":""},{"$f":"IF('GM aktas'!B37=\"PASIRINKTI\",\"\",'GM aktas'!H37)","v":""},{"$f":"IF(H20=\"\",\"\",VLOOKUP(H20,darbinis!$D$16:$E$36,2,0))","v":""},{"$f":"'GM aktas'!G37/'GM aktas'!F37","v":{"$error":"#DIV/0!"}},null,0]
[null,null,null,null,"Suma",{"$f":"SUM(F15:F20)","v":0},{"$f":"SUBTOTAL(9,G15:G20)","v":0}]

{"sheet":"darbinis","index":2,"n_rows":173,"n_cols":25,"rows_kept":173,"cut":false,"hidden":true,"merged":[]}
["Grįžtamųjų medžiagų atsiradimo priežastis: ",null,"Prekės supirkėjas:",null,null,null,null,null,null,null,null,null,null,null,null,null,null,null,null,null,null,"Scala kodas","Scala padadinimas","UAB \"Metransa\"","UAB \"Ruvis\""]
["pasirinkti",null,"pasirinkti"]
["2525002 Rekonstravimas, įrenginių likvidavimas",null,"Polimeta Kaunas (Ateities pl. 34C, Kaunas)"]
["6111007 Medžiagų nurašymas",null,"Kusameta Vilnius (Pramonės g. 113, Vilnius)"]
["6113013 Remontas",null,"Kuusamet Klaipėda (Minijos g. 162, Klaipėda)"]
[null,null,"Kuusamet Šiauliai (Pramonės g. 26, Šiauliai)"]
[null,null,"Kuusamet Panevėžys (Tinklų g. 33, Panevėžys)"]
[null,null,"Utenos metalai Utena (Žemdirbių g. 4, Utena)"]
["Rangovo veiksmais",null,"Polimeta Alytus (Pramonės g.15, Alytus)"]
["pasirinkti"]
["Rangovas pristato į ESO sandėlį"]
["Rangovas pristato į supirktuvę"]
[]
[]
[]
[null,null,"Pasirinkti","Dynamics kodas","Dynamic pavadinimas",null,"Polimeta Kaunas","Kusameta Vilnius","Kuusamet Klaipėda","Kuusamet Šiauliai","Kuusamet Panevėžys","Utenos metalai Utena","Polimeta Alytus"]
[null,1,"1. Aliuminio laužas (A tipo laidas)","22101000850009","Laužas aliuminio iš laido A","kg",2.9390000000000001,3.1,3.0199999999999996,2.6799999999999997,2.6799999999999997,2.9000000000000004,2.5060000000000002]
[null,2,"2. Aliuminio laužas (AS tipo laidas)","22101000850008","Laužas aliuminio iš laido AS","kg",1.8269999999999997,1.8,1.7500000000000002,1.37,1.4000000000000001,1.6700000000000002,1.607]
[null,3,"3. Al kabeliai su plastikine izoliacija","22101000850007","Laužas aliuminio iš 0,4-1 0kV plastikine izoliacija","kg",0.76200000000000001,1,0.7400000000000001,0.70000000000000007,0.62,0.63,0.77200000000000002]
[null,4,"4. Al kabeliai su alyvine izoliacija","22101000850006","Laužas aliuminio 0,4-10 k V su alyvine izoliacija","kg",0.152,0.5,0.39,0.39,0.39,0.53,0.6419999999999999]
[null,5,"5. Al izoliuoti oro linijų laidai","22101000850005","Laužas aliuminio 0,4-10 k V izoliuoti OL laidai","kg",0.76200000000000001,1,0.9,0.70000000000000007,0.62,0.63,0.77200000000000002]
[null,6,"6. Al laužas (nenurodytas 1-5 poz.)*","22101000850004","Laužas aliuminio (nenurod ytas 1-5 pozicijose)","kg",1.9790000000000001,1.8,1.6800000000000002,1.55,1.55,1.6700000000000002,1.5429999999999997]
[null,7,"7. Švino akumuliatoriai","22101000850016","Laužas švino (akumuliatorių)","kg",0.56799999999999995,0.6,0.6,0.55999999999999994,0.55999999999999994,0.64999999999999991,0.61299999999999999]
[null,8,"8. Švino plombos","22101000850017","Laužas švino (plombų)","kg",0.26299999999999996,0.3,1.1099999999999999,1.1099999999999999,1.1099999999999999,1.1099999999999999,9.2999999999999999E-2]
[null,9,"9. Vario kabeliai su plastikine izoliacija","22101000850020","Laužas vario iš 0,4-35kV kabelių su plast. izol.","kg",2.423,3.1,3.1499999999999995,2.82,2.82,3.2800000000000002,2.0960000000000001]
[null,10,"10. Vario kabeliai su alyvine izoliacija","22101000850029","Laužas vario iš 0,4-10kV kabelių su alyvine izoliacija","kg",0.14199999999999999,2.8,1.5799999999999998,1.3,1.3,3.2800000000000002,0.13]
[null,11,"11. Vario laužas ( nenurodytas 9-10 poz.)","22101000850019","Laužas vario (nenurodytas 9-10 pozicijose)","kg",9.3390000000000004,9.5,9.9599999999999991,8.7800000000000011,8.6499999999999986,9.17,8.5180000000000007]
[null,12,"12. Plienas","22101000850013","Laužas metalo juodojo (plienas)","kg",0.28399999999999997,0.27,0.29299999999999998,0.25400000000000006,0.25200000000000006,0.26,0.26600000000000001]
[null,13,"13. Skarda","22101000850014","Laužas metalo juodojo (skarda)","kg",0.26600000000000001,0.25,0.28699999999999998,0.24300000000000005,0.23700000000000004,0.26,0.25200000000000006]
[null,14,"14. Nerūšiuotas metalo laužas","22101000850012","Laužas metalo juodojo (nerūšiuotas)","kg",0.26600000000000001,0.26,0.29299999999999998,0.24300000000000005,0.23700000000000004,0.26,0.25200000000000006]
[null,15,"15. Ketaus laužas","22101000850011","Laužas metalo juodojo (ketus)","kg",0.28399999999999997,0.27,0.29299999999999998,0.25400000000000006,0.25200000000000006,0.26,0.26600000000000001]
[null,16,"16. Lydmetalis","22101000850026","Laužas iš Lydmetalio","kg",1,1,5,4,4,1.6,2]
[null,17,"17. Bronza","22101000850027","Laužas iš Bronzos","kg",4.55,7,5.2,4.8,4.8,5,4]
[null,18,"18. Žalvaris","22101000850028","Laužas iš Žalvario","kg",4.45,6.5,5.2,4.8,4.8,4.7,4]
[null,19,"19. Montaž. laidai ir ryšių kabeliai (varis)","22101000850018","Laužas vario (kabel.laidų atliekos)","kg",2.423,2.5,2.4900000000000002,2.4900000000000002,2.4900000000000002,3.2800000000000002,1.966]
[null,20,"20. Montaž. laidai ir ryšių kabeliai ( Al)","22101000850003","Laužas aliuminio (kabel.,laid. atliekos)","kg",0.76200000000000001,1,0.84000000000000008,0.7400000000000001,0.62,0.63,0.6419999999999999]
[]
[]
[]
[]
[]
[]
[]
[]
[]
[]
[]
[]
[]
[]
[]
[]
[]
[]
[]
[]
[]
[]
[]
[]
[]
[]
[]
[]
[]
[]
[]
[]
[]
[]
[]
[]
[]
[]
[]
[]
[]
[]
[]
[]
[]
[]
[]
[]
[null,null,null,null,null,null,null,null,"pasirinkti"]
[null,null,null,null,null,null,null,null,"A Žilinskio ir Ko UAB"]
[null,null,null,null,null,null,null,null,"Aedilis UAB"]
[null,null,null,null,null,null,null,null,"Alduva UAB"]
[null,null,null,null,null,null,null,null,"Alkesta UAB"]
[null,null,null,null,null,null,null,null,"Anykščių energetinė statyba UAB"]
[null,null,null,null,null,null,null,null,"APS Energyline UAB"]
[null,null,null,null,null,null,null,null,"APS grupė UAB"]
[null,null,null,null,null,null,null,null,"Apšvietimas UAB"]
[null,null,null,null,null,null,null,null,"Aremsa UAB"]
[null,null,null,null,null,null,null,null,"Asirinta UAB"]
[null,null,null,null,null,null,null,null,"ATP Baltic UAB"]
[null,null,null,null,null,null,null,null,"BATTEC UAB"]
[null,null,null,null,null,null,null,null,"Bosleta UAB"]
[null,null,null,null,null,null,null,null,"Bustatyba MB"]
[null,null,null,null,null,null,null,null,"Devaloka UAB"]
[null,null,null,null,null,null,null,null,"DS-1 UAB"]
[null,null,null,null,null,null,null,null,"Dujostata UAB"]
[null,null,null,null,null,null,null,null,"Dujotiekio statyba UAB"]
[null,null,null,null,null,null,null,null,"Dujotiekis UAB"]
[null,null,null,null,null,null,null,null,"Dusta UAB"]
[null,null,null,null,null,null,null,null,"DVU BALTIC UAB"]
[null,null,null,null,null,null,null,null,"Elektra ir Co UAB"]
[null,null,null,null,null,null,null,null,"Elektra UAB"]
[null,null,null,null,null,null,null,null,"Elektrifikacijos darbai UAB"]
[null,null,null,null,null,null,null,null,"Elektrifikacijos paslaugos UAB"]
[null,null,null,null,null,null,null,null,"Elektriniai matavimai UAB"]
[null,null,null,null,null,null,null,null,"Elektro LT UAB"]
[null,null,null,null,null,null,null,null,"Elektromontuotojas UAB"]
[null,null,null,null,null,null,null,null,"Elektros darbai UAB"]
[null,null,null,null,null,null,null,null,"Elektros pajėgos UAB"]
[null,null,null,null,null,null,null,null,"Elektros tinklas UAB"]
[null,null,null,null,null,null,null,null,"Elektros tinklų statyba AB"]
[null,null,null,null,null,null,null,null,"Elektrovatas UAB"]
[null,null,null,null,null,null,null,null,"Elektrovoltas UAB"]
[null,null,null,null,null,null,null,null,"Elmava UAB"]
[null,null,null,null,null,null,null,null,"Elmoda UAB"]
[null,null,null,null,null,null,null,null,"Elmonta UAB"]
[null,null,null,null,null,null,null,null,"Elmova UAB"]
[null,null,null,null,null,null,null,null,"Elvaradas UAB"]
[null,null,null,null,null,null,null,null,"Energetikos ranga UAB"]
[null,null,null,null,null,null,null,null,"Energetikos tinklų institutas AB"]
[null,null,null,null,null,null,null,null,"Energia futura UAB"]
[null,null,null,null,null,null,null,null,"Energijos skirstymo operatorius AB"]
[null,null,null,null,null,null,null,null,"Energika UAB"]
[null,null,null,null,null,null,null,null,"EnergoLT UAB"]
[null,null,null,null,null,null,null,null,"Energostatika UAB"]
[null,null,null,null,null,null,null,null,"Eresta UAB"]
[null,null,null,null,null,null,null,null,"ES Energy UAB"]
[null,null,null,null,null,null,null,null,"Exto UAB"]
[null,null,null,null,null,null,null,null,"Fisanta UAB"]
[null,null,null,null,null,null,null,null,"Geovizija UAB"]
[null,null,null,null,null,null,null,null,"Indastrus UAB"]
[null,null,null,null,null,null,null,null,"Jarkesta UAB"]
[null,null,null,null,null,null,null,null,"Jodesta UAB"]
[null,null,null,null,null,null,null,null,"Kadoro LT MB"]
[null,null,null,null,null,null,null,null,"Kalistara UAB"]
[null,null,null,null,null,null,null,null,"Kauno tiltai AB"]
[null,null,null,null,null,null,null,null,"Klaipėdos energetika AB"]
[null,null,null,null,null,null,null,null,"KRS UAB"]
[null,null,null,null,null,null,null,null,"Kugeta UAB"]
[null,null,null,null,null,null,null,null,"Labas GAS UAB"]
[null,null,null,null,null,null,null,null,"LAUJUSTA UAB"]
[null,null,null,null,null,null,null,null,"Neiluva UAB"]
[null,null,null,null,null,null,null,null,"Nekta IĮ"]
[null,null,null,null,null,null,null,null,"Pažangi energetika UAB"]
[null,null,null,null,null,null,null,null,"Rimgauda UAB"]
[null,null,null,null,null,null,null,null,"Sandaila UAB"]
[null,null,null,null,null,null,null,null,"Šiaulių Rymonta UAB"]
[null,null,null,null,null,null,null,null,"Šiaulių tauro ryšiai UAB"]
[null,null,null,null,null,null,null,null,"Skominta UAB"]
[null,null,null,null,null,null,null,null,"Solar energy LT UAB"]
[null,null,null,null,null,null,null,null,"Solar energy LT UAB"]
[null,null,null,null,null,null,null,null,"Statkorpas AB"]
[null,null,null,null,null,null,null,null,"Stiemo UAB"]
[null,null,null,null,null,null,null,null,"Šviesos skaitiklis MB"]
[null,null,null,null,null,null,null,null,"Telekomservisas UAB"]
[null,null,null,null,null,null,null,null,"TETAS UAB"]
[null,null,null,null,null,null,null,null,"Transmodo UAB"]
[null,null,null,null,null,null,null,null,"Undraitis ir ko UAB"]
[null,null,null,null,null,null,null,null,"Vadema UAB"]
[null,null,null,null,null,null,null,null,"Vakarų energetika UAB"]
[null,null,null,null,null,null,null,null,"Vilniaus energetinė statyba AB"]
[null,null,null,null,null,null,null,null,"Vilniaus inžinerija UAB"]
[null,null,null,null,null,null,null,null,"Vilprava UAB"]
[null,null,null,null,null,null,null,null,"Vytmarca MB"]
[null,null,null,null,null,null,null,null,"Vytrita UAB"]
[null,null,null,null,null,null,null,null,"Žemaitijos energetika UAB"]
[null,null,null,null,null,null,null,null,"Žilinskis ir Co UAB"]